Cogmind - Beta 15 @@@ ROGUE MODE // 2025.07.07 @ 16:37:55 Player: MirenBlacksword Result: Destroyed by as-26715 with Assembled Heavy Rifle Performance ------------- Evolutions (0) 0 Regions Visited (0) 0 Robots Destroyed (2) 10 Value Destroyed (106) 106 Prototype IDs (0) 0 Alien Tech Used (0) 0 Bonus (0) 0 TOTAL SCORE: 116 Bonus ------- None Cogmind --------- Core Integrity 0/250 Matter 222/300 Energy 95/100 System Corruption 0% Temperature Cool (0) Movement Walking (120) Location -11/Scrapyard Parts ------- > --- POWER (1) -------- (None) > --- PROPULSION (2) --- Aluminum Leg Aluminum Leg > --- UTILITY (2) ------ Small Storage Unit > --- WEAPON (2) ------- Medium Laser > --- INVENTORY (8) ---- Compact Wheel Compact Wheel Peak State ------------ > --- POWER ------------ Ion Engine > --- PROPULSION ------- Aluminum Leg Aluminum Leg > --- UTILITY ---------- Small Storage Unit > --- WEAPON ----------- Assault Rifle Assault Rifle > --- INVENTORY -------- Light Ion Engine Light Treads Light Treads Compact Wheel Compact Wheel Medium Laser [Rating: 6] Favorites ----------- Power Ion Engine Engine Ion Engine Propulsion Light Treads Treads Light Treads Leg Aluminum Leg Utility Small Storage Unit Storage Small Storage Unit Weapon Assault Rifle Energy Gun Medium Laser Ballistic Gun Assault Rifle Build | -11 ------- Run | Yrd Slots Evolved . | . Power . | . Propulsion . | . Utility . | . Weapon . | . Parts Attached 6 | 6 Power 1 | 1 Engine 1 | 1 Core . | . Reactor . | . Propulsion 4 | 4 Treads 2 | 2 Leg 2 | 2 Wheel . | . Hover . | . Flight . | . Utility . | . Device . | . Storage . | . Processor . | . Hackware . | . Protection . | . Artifact . | . Weapon 1 | 1 Energy Gun 1 | 1 Energy Cannon . | . Ballistic Gun . | . Ballistic Cannon . | . Launcher . | . Special Weapon . | . Impact Weapon . | . Slashing Weapon . | . Piercing Weapon . | . Special Melee Weapon . | . Unidentified Prototypes . | . Parts Lost 6 | 6 Power 2 | 2 Propulsion 2 | 2 Utility . | . Weapon 2 | 2 Highest Loss Streak 3 | 3 To Critical Strikes 1 | 1 Average Backups 5 | 5 Power . | . Propulsion 3 | 3 Utility . | . Weapon . | . Tool/Special . | . Unused Backups 6 | 6 Power 1 | 1 Propulsion 2 | 2 Utility 1 | 1 Weapon 2 | 2 Tool/Special . | . Average Slot Usage (%) . | . Peak Build Rating 6 | 6 Average Rating 5 | 5 On Entrance 6 | 6 Naked Turns . | . Heaviest Build 12 | 12 Greatest Support 40 | 40 Greatest Overweight (x) 2 | 2 Average Overweight (x) . | . Largest Inventory Capacity 8 | 8 Average Capacity 8 | 8 Most Carried 6 | 6 Average Carried 5 | 5 Final Capacity 8 | 8 Final Carried 2 | 2 Class Distribution -------------------- None Dominant Class ---------------- None Resources | -11 ----------- Run | Yrd Matter Collected 323 | 323 Remotely . | . Salvage Created 207 | 207 Parts . | . Haulers Intercepted . | . Recyclers Shooed . | . Parts Field Recycled . | . Retrieved Matter . | . Parts Self-Destructed . | . Prevented . | . Kills | -11 ------- Run | Yrd Combat Hostiles Destroyed 16 | 16 Guns 16 | 16 Classes Destroyed 2 | 2 Demolisher 2 | 2 Assembled 14 | 14 Best Kill Streak 10 | 10 Combat Bots Only 10 | 10 Max Kills in Single Turn 1 | 1 Gunslinging . | . Exploded . | . Melee . | . Uniques/NPCs Destroyed . | . Combat | -11 -------- Run | Yrd Hostile Shots Fired 84 | 84 Missed 23 | 23 Hits 61 | 61 Melee 6 | 6 Projectile 55 | 55 AOE 9 | 9 Critical Strikes 1 | 1 Part Disruptions 1 | 1 Damage Taken 1108 | 1108 Core 253 | 253 Absorbed by Shields . | . Core Remaining (%) . | . Volleys Fired 49 | 49 Largest 2 | 2 Hottest 70 | 70 Shots Fired 89 | 89 Gun 89 | 89 Cannon . | . Launcher . | . Special . | . Kinetic 57 | 57 Thermal 32 | 32 Explosive . | . Electromagnetic . | . Robot Hit Streak 12 | 12 Robot Miss Streak 3 | 3 Penetration Max . | . Secondary Targets 3 | 3 Max Gunslinging Chain 1 | 1 Shots Hit Robots 57 | 57 Core Hits 31 | 31 Critical Kills . | . Critical Parts Destroyed . | . Critical Strikes 4 | 4 Burn 4 | 4 Melee Attacks . | . Impact . | . Slashing . | . Piercing . | . Sneak Attacks . | . Combat Hostiles . | . Follow-up Attacks . | . Damage Inflicted 729 | 729 Guns 729 | 729 Cannons . | . Explosions . | . Melee . | . Ramming . | . Kinetic 402 | 402 Thermal 327 | 327 Explosive . | . Electromagnetic . | . Impact . | . Slashing . | . Piercing . | . Highest Corruption . | . Average Corruption . | . Corruption Purged . | . Corruption Blocked . | . Overload Shots . | . Overflow Damage . | . Projectiles . | . Explosions . | . Melee . | . Knockbacks . | . Impact . | . Kinetic . | . Secondary . | . Self-Inflicted Damage . | . Shots . | . Rammed . | . Targets Rammed . | . Kicked . | . Crushed . | . Highest Temperature 54 | 54 Average Temperature 20 | 20 Received Heat Transfer 200 | 200 Siege Activations . | . Martial Activations . | . Shielding Activations . | . Robots Disrupted . | . Combat Hostiles . | . Robots Corrupted . | . Combat Hostiles . | . Parts Fried . | . Impact Corruptions . | . Robots Melted . | . Combat Hostiles . | . Parts Melted . | . Heat Transferred 1258 | 1258 Parts Sabotaged . | . Parts Stolen . | . Parts Stripped . | . Power Chain Reactions . | . Alert | -11 ------- Run | Yrd Maximum Alert Level . | . Low Security (%) 100 | 100 Level 1 . | . Level 2 . | . Level 3 . | . Level 4 . | . Level 5 . | . High Security . | . Max Security . | . Peak Influence 50 | 50 Initial . | . Average 2 | 2 Influence Increases 50 | 50 Destroy 0b10 Robot/C 40 | 40 Destroy Leader 10 | 10 Influence Decreases 50 | 50 Time Decay 20 | 20 Lost Part 30 | 30 Squads Dispatched . | . Investigation . | . Extermination . | . Reinforcement . | . Assault . | . Garrison . | . Intercept . | . Searches Triggered . | . Construction Impeded . | . Haulers Reinforced . | . Active Scanning Responses . | . Cargo Convoy Interrupts . | . Stealth | -11 --------- Run | Yrd Distress Signals . | . Communications Jammed . | . Distress Signals . | . Times Spotted 17 | 17 Peak Tracking Total 4 | 4 Tactical Retreats 2 | 2 Traps | -11 ------- Run | Yrd Traps Triggered . | . Indirectly . | . Trap Hack Attempts . | . Triggered . | . Disarmed . | . Reprogrammed . | . Reused . | . Traps Extracted . | . Installed . | . Triggered . | . Machines | -11 ---------- Run | Yrd Machines Disabled . | . Max in Single Turn . | . Machines Repaired . | . Machines Dismantled . | . Machines Sabotaged . | . Overloaded Fab Kills . | . Hacking | -11 --------- Run | Yrd Machines Accessed . | . Terminals . | . Fabricators . | . Repair Stations . | . Recycling Units . | . Scanalyzers . | . Garrison Access . | . Total Hacks . | . Successful . | . Failed . | . Catastrophic . | . Database Lockouts . | . Manual . | . Terminals . | . Fabricators . | . Repair Stations . | . Recycling Units . | . Scanalyzers . | . Garrison Access . | . Terminal Hacks . | . Fabricator Hacks . | . Repair Station Hacks . | . Recycling Unit Hacks . | . Scanalyzer . | . Garrison Access Hacks . | . Unauthorized Hacks . | . Terminals . | . Fabricators . | . Repair Stations . | . Recycling Units . | . Scanalyzers . | . Garrison Access . | . Data Cores Recovered . | . Used . | . Hacking Detections . | . Full Trace Events . | . Feedback Events . | . Feedback Blocked . | . Robot Schematics Acquired . | . Robots Built . | . Authchips . | . Time . | . Total Robot Build Rating . | . Part Schematics Acquired . | . Parts Built . | . Authchips . | . Time . | . Total Part Build Rating . | . Parts Repaired . | . Time . | . Parts Recycled . | . Recycled Matter . | . Retrieved Matter . | . Retrieved Components . | . Parts Scanalyzed . | . Part Schematics Acquired . | . Parts Damaged . | . Bothacking | -11 ------------ Run | Yrd Used RIF Installer . | . Robots Hacked . | . Non-combat . | . Combat . | . Robot Hacks Applied . | . Relay Couplers Released . | . Fabnet Peak Effective % . | . Robots Rewired . | . Allies Hacked . | . Hacks Repelled . | . Allies | -11 -------- Run | Yrd Total Allies . | . Largest Group . | . Highest-Rated Group . | . Highest-Rated Ally . | . Total Orders . | . Ally Attacks . | . Total Damage . | . Kills . | . Allies Corrupted . | . Allies Melted . | . Intel | -11 ------- Run | Yrd Active Infowar (turns) . | . Robot Analysis Total . | . Derelict Logs Recovered . | . Drone Launches . | . Drone Recoveries . | . Exploration | -11 ------------- Run | Yrd Turns Passed 1473 | 1473 Spaces Moved 51 | 51 Core 1 | 1 Treads 32 | 32 Legs 18 | 18 Wheels . | . Hover . | . Flight . | . Fastest Speed 120 | 120 Average Speed 145 | 145 Slowest Speed 160 | 160 Overloaded Moves . | . Propulsion Burnouts . | . Robots Hopped . | . Potential Cave-ins . | . Cave-ins Triggered . | . Exploration Rate (%) 12 | 12 Regions Visited . Branch Regions . Pre-discovered Areas . | . Known Exits Taken . | . Unknown Exits Taken . | . Scrap Searched . | . Spaces Dug . | . Terrain Destroyed . | . Melee . | . Projectile . | . AOE . | . Terrain Rammed . | . Walls Destroyed . | . Machines Disabled . | . Actions | -11 --------- Run | Yrd Total 1360 | 1360 Wait 1254 | 1254 Move 51 | 51 Hop . | . Pick Up . | . Fast Attach . | . Attach 4 | 4 Detach . | . Swap 2 | 2 Drop . | . Fire 49 | 49 Melee . | . Ram . | . Kick . | . Crush . | . Escape Stasis . | . Rewire . | . Trap . | . Miscellaneous . | . Route ------- -11/Scrapyard (discovered 1 exit: [*Mat]) History --------- Turn | Location | Event 51 | -11/Scrapyard | Discovered new exit (range 2) 1215 | -11/Scrapyard | Assembled infested the area 1334 | -11/Scrapyard | Core integrity fell below 50% 1360 | -11/Scrapyard | Lost 3 parts (1p1n1w) 1413 | -11/Scrapyard | Destroyed 10 combat bots 1426 | -11/Scrapyard | Core integrity fell below 20% 1474 | -11/Scrapyard | Destroyed by as-26715 with Assembled Heavy Rifle Last Messages --------------- 01383_ as-45595 suffers critical hit (Burn). 01386_ as-45595 destroyed. 01386_ Switching to secondary target: as-45974. 01392_ as-45974 destroyed. 01395_ Acquired 27 matter. 01397_ The unstable cave ceiling collapses. 01397_ Acquired 12 matter. 01416_ The unstable cave ceiling collapses. 01430_ as-37114 destroyed. 01430_ Switching to secondary target: as-43144. 01433_ Acquired 18 matter. 01438_ K-01 Serf collects debris. 01448_ as-04058 destroyed. 01458_ as-43144 destroyed. 01461_ Acquired 20 matter. 01465_ Acquired 18 matter. 01470_ as-25463 destroyed. 01472_ Critical hit (Destroy). 01472_ Assault Rifle destroyed. 01473_ as-26715 suffers critical hit (Burn). Map ----- +----------------------------------------------------+ | ?????????????????????????????????????????????????? | | ?????????????????????????????????????????????????? | | ?????????????????????????????????????????????????? | | ?????????????????????? ?????????????????????????? | | ?????????????????????? ?????????????????????????? | | ?????????????????????? ?????????????????????????? | | ?????????????????????? #????????????????????????? | | ?????????????????????? #????????????????????????? | | ?????????????????????? #????????????????????????? | | ?????????????????????? #????????????????????????? | | ?????????????????????# #????????????????????????? | | ?????????????????????# #????????????????????????? | | ????????????????????? = ????????????????????????? | | ?????????????????????#%*#????????????????????????? | | ?????????????????????#= #????????????????????????? | | ?????????????????????# #????????????????????????? | | ?????????????????????# #????????????????????????? | | ?????????????????????# #????????????????????????? | | ?????????????????????# #????????????????????????? | | ?????????????????????# ##########???????????????? | | ???????????########??# # #???????????????? | | ???????????# ??# # #???????????????? | | ???????????# ?# # #???????????????? | | ???????????# ?# # #???????????????? | | ???????????# #% # #???????????????? | | ???????????# # #@ #???????????????? | | ???????????# % a #???????????????? | | ???????????# # # #???????????????? | | ???????????# #% # #???????????????? | | ???????????########### %##########???????????????? | | ??????????????????# % #?????????????????????? | | ??????????????????# % ##????????????????????? | | ??????????????????# ########??????????????? | | ????????? ##### #??????????????? | | ????????? #??????????????? | | ????????? ##### #??????????????? | | ????????? ##### < ###??? #??????????????? | | ?????????? ??????# # #???????????????????? | | ??????????????????##### # ###???????????????????? | | ????????????????????## # ###????????????????????? | | ?????????????????????#######?????????????????????? | | ?????????????????????????????????????????????????? | | ?????????????????????????????????????????????????? | | ?????????????????????????????????????????????????? | | ?????????????????????????????????????????????????? | | ?????????????????????????????????????????????????? | | ?????????????????????????????????????????????????? | | ?????????????????????????????????????????????????? | | ?????????????????????????????????????????????????? | | ?????????????????????????????????????????????????? | +----------------------------------------------------+ Best States ------------- Heat Dissipation 25 Energy Generation 10 Energy Capacity 250 Matter Stores 300 Matter Capacity 300 Sight Range 16 Terrain Scan Density 10 Evasion (%) 45 Recoil Reduction 2 Item Schematics ----------------- None Robot Schematics ------------------ None Fabricated ------------ Nothing Repaired ---------- Nothing Alien Tech Used ----------------- None Achievements -------------- Curiosity Killed The Cat Challenges ------------ None Game ------ Seed GravmagEnergyLink Manual? 0 Play Time 00:13:44 Cumulative 16.5 hours Start 2025.07.07 @ 16:30:55 End 2025.07.07 @ 16:37:55 Sessions 0 Manual Loads 0 Difficulty Rogue Special Mode None Game No. 9 Rogue 4 Adventurer 5 Explorer 0 Win Type - Total 1 Types 1/0/0/0/0/0/0/0/0/0 Lore% 5 Gallery% 15 Achievement% 20 Wizard Run 0 Options --------- Layout 1 ASCII 0 Keyboard 0 Movement Arrows Keybinds 0 Fullscreen 1 Font 24/Smallcaps Map View 50x35 Zoom Use 0% Tactical HUD 1 Map Filters NONE Filters NONE Steam 1 RUN: 4ad0b983-d1ec-4cc3-88c1-8adc829e764c